bitfinex-derivatives/quotes_SOLF0:USTF0_20251025
["timestamp","ask_amount","ask_price","bid_price","bid_amount"]
[1761408860627,2.85,191.69,191.66,2.69]
[1761408860810,2.85,191.69,191.65,66.51]
[1761408861019,2.85,191.69,191.66,2.69]
[1761408862319,2.65,191.76,191.66,2.69]
[1761408862517,2.65,191.74,191.66,2.69]
[1761408871329,4.00271566,191.73,191.66,2.69]
[1761408871532,2.65,191.72,191.66,2.69]
[1761408887738,2.65,191.72,191.67,2.74]
[1761408896948,2.72,191.7,191.67,2.74]
[1761408905549,6.7207946,191.73,191.67,2.74]
[1761408905750,6.7207946,191.72,191.67,2.74]
[1761408905948,2.73,191.72,191.67,2.74]
[1761408906948,2.73,191.75,191.67,2.74]
[1761408907154,2.73,191.78,191.7,2.71]
[1761408907347,3.99108982,191.77,191.7,2.71]
[1761408907543,2.73,191.78,191.7,2.71]
[1761408907752,2.73,191.75,191.71,66.35]
[1761408908050,2.73,191.75,191.72,2.89]
[1761408909254,2.73,191.75,191.66,2.89]
[1761408909448,2.73,191.75,191.67,58.76]
[1761408909655,2.63,191.73,191.67,58.76]
[1761408910042,2.63,191.73,191.67,61.65]
[1761408910242,2.63,191.73,191.68,2.89]
[1761408915458,2.63,191.73,191.62,1.91317328]
[1761408915663,2.63,191.73,191.65,66.51]
[1761408915960,2.63,191.73,191.66,2.89]
[1761408917761,2.63,191.73,191.67,2.89]
[1761408931971,20.14470027,191.81,191.67,2.89]
[1761408932170,2.63,191.79,191.67,2.89]
[1761408932373,2.63,191.77,191.67,2.89]
[1761408933178,2.63,191.77,191.71,2.89]
[1761408933374,2.63,191.77,191.73,2.89]
[1761408933775,2.63,191.8,191.73,2.89]
[1761408933981,3.93124364,191.79,191.73,2.89]
[1761408934281,2.63,191.8,191.73,2.89]
[1761408934478,3.93063544,191.79,191.73,2.89]
[1761408934674,2.63,191.8,191.73,2.89]
[1761408934871,6.56063597,191.79,191.73,2.89]
[1761408935071,2.63,191.79,191.73,2.89]
[1761408941993,2.75,191.83,191.73,2.89]
[1761408943793,2.75,191.83,191.74,1.91317328]
[1761408943999,2.75,191.83,191.75,2.67]
[1761408944200,2.75,191.83,191.77,2.67]
[1761408945798,2.75,191.83,191.77,66.19]
[1761408946197,2.75,191.83,191.78,2.67]
[1761408956803,2.75,191.83,191.8,2.67]
[1761408958097,2.75,191.83,191.79,1.22299314]
[1761408958302,2.75,191.83,191.8,63.48]
[1761408960602,2.75,191.83,191.8,66.23]
[1761408962408,2.75,191.83,191.8,63.48]
[1761408964504,2.75,191.83,191.79,1.22299314]
[1761408964700,2.75,191.83,191.79,67.43299314]
[1761408966512,2.75,191.83,191.79,66.21]
[1761408966819,2.75,191.83,191.78,63.46]
[1761408968008,2.89,191.81,191.71,3.99299314]
[1761408968316,2.89,191.8,191.72,63.46]
[1761408968511,2.89,191.79,191.72,63.46]
[1761408968717,2.89,191.79,191.74,1.22299314]
[1761408974321,2.89,191.78,191.74,1.22299314]
[1761408975618,2.89,191.78,191.74,3.99299314]
[1761408980517,2.89,191.78,191.75,2.77]
[1761408981222,2.89,191.78,191.77,1.22299314]
[1761408986025,6.86281108,191.78,191.77,1.22299314]
[1761408986325,2.89,191.78,191.77,1.22299314]
[1761408986521,2.89,191.78,191.76,1.22299314]
[1761408986727,2.89,191.78,191.72,2.77]
[1761408987119,2.89,191.78,191.7,5.92]
[1761408987316,2.89,191.82,191.7,8.69]
[1761408987624,2.89,191.8,191.71,2.77]
[1761408987826,2.89,191.78,191.71,2.77]
[1761409002242,3.97176007,191.77,191.71,2.77]
[1761409002442,2.87,191.76,191.71,2.77]
[1761409006043,2.87,191.76,191.68,2.69]
[1761409006246,2.87,191.74,191.68,2.69]
[1761409020254,2.87,191.74,191.63,49.18]
[1761409020446,2.65,191.72,191.64,2.86]
[1761409020650,2.65,191.7,191.64,2.86]
[1761409021251,2.65,191.7,191.61,2.86]
[1761409029749,3.96737662,191.72,191.61,2.86]
[1761409029952,2.83,191.73,191.61,2.86]
[1761409037165,2.83,191.73,191.63,2.8]
[1761409039664,2.83,191.73,191.6,0.90791688]
[1761409039665,2.83,191.73,191.65,2.8]
[1761409041460,2.83,191.73,191.66,2.8]
[1761409057275,7.27239909,191.77,191.66,2.8]
[1761409057475,2.83,191.77,191.66,2.8]
[1761409073691,2.73,191.79,191.66,2.8]
[1761409074996,2.73,191.79,191.67,2.89]
[1761409086400,2.73,191.79,191.68,2.76]
[1761409088099,2.73,191.79,191.69,2.7]
[1761409093896,2.73,191.79,191.7,2.7]
[1761409106003,2.84,191.83,191.71,2.7]
[1761409107102,2.84,191.83,191.73,2.7]
[1761409107303,2.84,191.83,191.75,2.7]
[1761409134722,2.84,191.83,191.76,65.84]
[1761409139722,2.84,191.83,191.77,2.68]
[1761409148137,2.84,191.83,191.76,63.18]
[1761409148332,2.7,191.81,191.72,84.06940858]
[1761409148533,2.7,191.79,191.73,63.16]
[1761409149337,2.7,191.79,191.74,2.89]
[1761409163356,2.7,191.79,191.72,84.06940858]
[1761409163539,2.7,191.79,191.73,63.14]
[1761409172455,2.7,191.79,191.73,66.03]
[1761409174551,2.7,191.79,191.74,2.89]
[1761409202071,2.8,191.82,191.74,2.89]
[1761409202271,2.8,191.8,191.74,2.89]
[1761409206676,7.33165588,191.83,191.74,2.89]
[1761409206865,3.93718796,191.82,191.74,2.89]
[1761409207166,3.93718796,191.81,191.74,2.89]
[1761409207474,2.8,191.83,191.74,2.89]
[1761409207674,6.73757318,191.82,191.74,2.89]
[1761409207973,3.93757318,191.81,191.74,2.89]
[1761409208174,2.8,191.82,191.74,2.89]
[1761409208383,3.9372861,191.81,191.74,2.89]
[1761409208669,2.8,191.82,191.74,2.89]
[1761409208865,3.93778364,191.81,191.74,2.89]
[1761409209066,2.8,191.82,191.74,2.89]
[1761409209266,3.93747181,191.81,191.74,2.89]
[1761409209465,2.8,191.82,191.74,2.89]
[1761409209669,3.93744061,191.81,191.74,2.89]
[1761409209866,2.8,191.82,191.74,2.89]
[1761409210166,3.93744061,191.81,191.74,2.89]
[1761409210466,2.8,191.82,191.74,2.89]
[1761409210666,3.93715404,191.81,191.74,2.89]
[1761409210965,2.8,191.82,191.74,2.89]
[1761409211167,3.93715404,191.81,191.74,2.89]
[1761409211466,2.8,191.82,191.74,2.89]
[1761409211666,3.9368907,191.81,191.74,2.89]
[1761409211964,2.8,191.82,191.74,2.89]
[1761409212160,2.86,191.8,191.74,2.89]
[1761409223489,6.47871921,191.88,191.74,2.89]
[1761409223490,6.80091174,191.84,191.74,2.89]
[1761409223677,3.94091174,191.83,191.74,2.89]
[1761409223881,2.86,191.84,191.74,2.89]
[1761409224082,3.94136896,191.83,191.74,2.89]
[1761409224278,2.86,191.84,191.74,2.89]
[1761409244114,2.86,191.84,191.75,2.89]
[1761409252312,2.86,191.84,191.77,2.89]
[1761409253608,2.86,191.84,191.79,2.89]
[1761409253821,2.86,191.84,191.81,2.89]
[1761409254015,2.09661217,191.84,191.81,2.89]
[1761409254218,3.90080887,191.91,191.81,2.89]
[1761409254418,8.45320171,191.93,191.81,2.89]
[1761409254616,3.90080887,191.92,191.81,2.89]
[1761409254817,3.90080887,191.91,191.81,2.89]
[1761409255118,8.45228087,191.94,191.81,2.89]
[1761409255313,8.45228087,191.93,191.81,2.89]
[1761409255514,3.90080887,191.92,191.81,2.89]
[1761409255722,3.90080887,191.91,191.81,2.89]
[1761409256023,8.45153995,191.94,191.81,2.89]
[1761409256217,2.78,191.92,191.81,2.89]
[1761409257522,2.78,191.91,191.81,2.89]
[1761409267033,2.78,191.91,191.82,63.02]
[1761409270625,2.78,191.91,191.82,65.89]
[1761409275536,2.78,191.91,191.83,2.87]
[1761409313564,2.78,191.91,191.85,2.62]
[1761409323464,2.78,191.91,191.87,2.78]
[1761409331772,2.82,191.89,191.83,2.75]
[1761409331977,2.82,191.89,191.83,65.69]
[1761409332180,2.82,191.89,191.83,62.94]
[1761409332378,2.82,191.89,191.84,2.75]
[1761409349890,15.87660317,191.98,191.83,72.6942277]
[1761409349891,2.61775288,191.92,191.86,2.75]
[1761409353583,2.61775288,191.92,191.87,2.75]
[1761409353788,2.61775288,191.92,191.89,2.75]
[1761409354288,2.53349877,191.92,191.89,2.75]
[1761409359992,2.53349877,191.92,191.88,62.92]
[1761409360190,2.53349877,191.92,191.88,65.57]
[1761409360993,2.53349877,191.92,191.88,62.92]
[1761409361192,2.53349877,191.92,191.89,2.65]
[1761409361392,2.53349877,191.92,191.88,62.92]
[1761409361589,2.53349877,191.92,191.88,65.57]
[1761409361993,2.53349877,191.92,191.88,62.92]
[1761409362200,2.53349877,191.92,191.89,2.65]
[1761409369104,2.53349877,191.92,191.86,2.65]
[1761409369405,2.53349877,191.92,191.87,65.55]
[1761409369806,2.53349877,191.92,191.87,62.9]
[1761409373004,2.53349877,191.92,191.87,65.55]
[1761409374004,2.88,191.9,191.8,65.55]
[1761409374210,2.88,191.88,191.8,65.55]
[1761409375808,2.88,191.87,191.8,65.55]
[1761409379819,2.88,191.87,191.81,2.68]
[1761409387829,2.88,191.87,191.8,62.9]
[1761409388924,2.82,191.86,191.8,62.9]
[1761409389113,3.98891533,191.89,191.8,62.9]
[1761409389310,2.82,191.85,191.8,62.9]
[1761409389826,2.82,191.85,191.76,2.77]
[1761409392530,2.82,191.85,191.74,61.98]
[1761409392829,2.82,191.85,191.74,64.75]
[1761409401329,2.82,191.85,191.75,2.77]
[1761409407837,3.97346981,191.85,191.75,2.77]
[1761409408037,2.82,191.84,191.75,2.77]
[1761409410944,2.82,191.84,191.74,61.98]
[1761409411343,2.82,191.83,191.74,61.98]
[1761409411534,2.82,191.82,191.74,64.75]
[1761409412448,2.82,191.81,191.74,64.75]
[1761409413345,2.82,191.8,191.74,64.75]
[1761409415643,2.82,191.8,191.75,2.77]
[1761409420248,2.68,191.83,191.75,2.77]
[1761409424152,4.02265227,191.82,191.75,2.77]
[1761409425356,6.70265227,191.82,191.75,2.77]
[1761409425656,2.68,191.82,191.75,2.77]
[1761409432559,4.02939275,191.81,191.75,2.77]
[1761409432760,2.68,191.81,191.75,2.77]
[1761409434454,6.72066078,191.8,191.75,2.77]
[1761409434751,2.68,191.8,191.75,2.77]
[1761409447186,4.04154579,191.79,191.75,2.77]
[1761409447378,2.68,191.8,191.75,2.77]
[1761409447578,4.04150563,191.79,191.75,2.77]
[1761409447779,2.68,191.8,191.75,2.77]
[1761409447978,4.04169896,191.79,191.75,2.77]
[1761409448186,2.68,191.8,191.75,2.77]
[1761409448386,4.04169896,191.79,191.75,2.77]
[1761409448585,2.68,191.8,191.75,2.77]
[1761409448782,4.04168195,191.79,191.75,2.77]
[1761409448985,2.68,191.8,191.75,2.77]
[1761409450386,2.9,191.83,191.75,2.77]
[1761409450591,4.04171856,191.82,191.75,2.77]
[1761409450891,4.04171856,191.81,191.75,2.77]
[1761409451090,2.9,191.83,191.75,2.77]
[1761409451297,4.04195259,191.82,191.75,2.77]
[1761409451488,2.9,191.83,191.75,2.77]
[1761409451489,2.9,191.8,191.75,2.77]
[1761409451795,2.9,191.78,191.75,2.77]
[1761409453289,4.04074905,191.77,191.75,2.77]
[1761409453500,2.9,191.78,191.75,2.77]
[1761409453695,4.04089153,191.77,191.75,2.77]
[1761409453995,2.9,191.78,191.75,2.77]
[1761409454195,4.04089153,191.77,191.75,2.77]
[1761409454392,2.9,191.78,191.75,2.77]
[1761409456705,9.71807882,191.88,191.75,2.77]
[1761409456706,6.93995203,191.77,191.75,2.77]
[1761409456994,2.9,191.77,191.75,2.77]
[1761409467110,2.9,191.77,191.71,0.90706494]
[1761409467304,2.9,191.77,191.72,2.64]
[1761409470310,2.9,191.77,191.71,0.90706494]
[1761409470503,2.9,191.77,191.71,3.54706494]
[1761409473112,4.03067321,191.76,191.71,3.54706494]
[1761409473311,2.9,191.8,191.71,3.54706494]
[1761409473511,2.9,191.78,191.71,3.54706494]
[1761409473709,2.9,191.76,191.72,2.64]
[1761409477611,2.9,191.76,191.71,0.90706494]
[1761409477816,2.9,191.74,191.71,2.64]
[1761409481815,2.63,191.76,191.71,2.64]
[1761409503843,2.9,191.8,191.71,2.64]
[1761409504037,6.94490704,191.79,191.71,2.64]
[1761409504237,4.04490704,191.78,191.71,2.64]
[1761409504541,2.9,191.79,191.71,2.64]
[1761409504542,4.04490704,191.77,191.71,2.64]
[1761409504734,2.9,191.79,191.71,2.64]
[1761409504936,6.94523602,191.78,191.71,2.64]
[1761409505136,4.04523602,191.77,191.71,2.64]
[1761409505336,2.9,191.78,191.71,2.64]
[1761409505635,4.0452396,191.77,191.71,2.64]
[1761409505930,2.9,191.78,191.71,2.64]
[1761409506134,4.0452396,191.77,191.71,2.64]
[1761409506336,2.9,191.78,191.71,2.64]
[1761409506535,4.04524318,191.77,191.71,2.64]
[1761409506735,2.9,191.78,191.71,2.64]
[1761409506932,4.04524318,191.77,191.71,2.64]
[1761409507136,2.9,191.81,191.71,2.64]
[1761409507332,4.04524615,191.8,191.71,2.64]
[1761409507536,6.94524615,191.79,191.71,2.64]
[1761409507734,4.04524615,191.78,191.71,2.64]
[1761409507941,2.9,191.79,191.71,2.64]
[1761409508142,4.04503861,191.78,191.71,2.64]
[1761409508343,2.9,191.79,191.71,2.64]
[1761409508548,4.04487598,191.78,191.71,2.64]
[1761409508748,2.9,191.79,191.71,2.64]
[1761409508946,4.04487598,191.78,191.71,2.64]
[1761409509148,2.9,191.79,191.71,2.64]
[1761409509347,4.0448757,191.78,191.71,2.64]
[1761409509546,2.9,191.79,191.71,2.64]
[1761409509740,4.04471925,191.78,191.71,2.64]
[1761409509943,2.9,191.79,191.71,2.64]
[1761409510143,4.04471925,191.78,191.71,2.64]
[1761409510349,2.9,191.79,191.71,2.64]
[1761409510548,4.04472141,191.78,191.71,2.64]
[1761409510846,2.9,191.79,191.71,2.64]
[1761409511042,6.72472113,191.78,191.71,2.64]
[1761409511248,2.68,191.78,191.71,2.64]
[1761409518757,2.68,191.76,191.71,2.64]
[1761409539978,4.03072146,191.75,191.71,2.64]
[1761409540173,2.66,191.74,191.71,2.64]
[1761409543176,2.66,191.77,191.71,2.64]
[1761409543373,6.69030467,191.76,191.71,2.64]
[1761409543573,4.03030467,191.75,191.71,2.64]
[1761409543780,2.66,191.79,191.71,2.64]
[1761409543979,6.69092845,191.78,191.71,2.64]
[1761409544177,4.03092845,191.77,191.71,2.64]
[1761409544380,2.66,191.78,191.71,2.64]
[1761409544678,4.03072924,191.77,191.71,2.64]
[1761409544880,2.66,191.78,191.71,2.64]
[1761409545073,6.69072924,191.77,191.71,2.64]
[1761409545275,2.66,191.77,191.71,2.64]
[1761409559899,2.88,191.75,191.71,2.64]
[1761409565504,2.88,191.79,191.71,2.64]
[1761409565804,6.90136639,191.78,191.71,2.64]
[1761409566103,4.02136639,191.77,191.71,2.64]
[1761409566301,4.02136639,191.76,191.71,2.64]
[1761409566500,2.88,191.78,191.71,2.64]
[1761409566702,4.01843224,191.77,191.71,2.64]
[1761409566901,4.01843224,191.76,191.71,2.64]
[1761409567205,2.88,191.78,191.71,2.64]
[1761409567403,4.01846844,191.77,191.71,2.64]
[1761409567604,4.01846844,191.76,191.71,2.64]
[1761409567802,2.88,191.78,191.71,2.64]
[1761409568002,6.89842478,191.77,191.71,2.64]
[1761409568203,6.89842478,191.76,191.71,2.64]
[1761409568401,2.88,191.76,191.71,2.64]
[1761409574010,4.01783601,191.75,191.71,2.64]
[1761409574310,2.88,191.76,191.71,2.64]
[1761409574502,4.84649076,191.8,191.71,2.64]
[1761409574503,6.89802123,191.75,191.71,2.64]
[1761409574707,2.88,191.75,191.71,2.64]
[1761409579004,6.89855439,191.8,191.71,2.64]
[1761409579206,4.01855439,191.79,191.71,2.64]
[1761409579410,2.88,191.8,191.71,2.64]
[1761409579605,6.8982667,191.79,191.71,2.64]
[1761409579805,2.88,191.79,191.71,2.64]
[1761409580010,4.01780859,191.78,191.71,2.64]
[1761409580210,4.01780859,191.77,191.71,2.64]
[1761409580400,2.88,191.79,191.71,2.64]
[1761409580601,4.01799475,191.78,191.71,2.64]
[1761409580804,4.01799475,191.77,191.71,2.64]
[1761409581105,2.88,191.79,191.71,2.64]
[1761409581301,4.01799475,191.78,191.71,2.64]
[1761409581501,4.01799475,191.77,191.71,2.64]
[1761409581801,2.88,191.79,191.71,2.64]
[1761409582112,4.01796335,191.78,191.71,2.64]
[1761409582415,4.01796335,191.77,191.71,2.64]
[1761409582615,2.88,191.79,191.71,2.64]
[1761409582811,4.0179392,191.78,191.71,2.64]
[1761409583012,4.0179392,191.77,191.71,2.64]
[1761409583315,2.88,191.79,191.71,2.64]
[1761409583614,4.01792279,191.78,191.71,2.64]
[1761409583815,4.01792279,191.77,191.71,2.64]
[1761409584018,2.88,191.79,191.71,2.64]
[1761409584216,2.88,191.77,191.71,2.64]
[1761409584612,4.84649076,191.82,191.71,2.64]
[1761409584613,2.88,191.75,191.71,2.64]
[1761409586818,2.88,191.75,191.7,3.61771558]
[1761409597020,2.88,191.75,191.71,2.71]
[1761409624853,2.88,191.75,191.7,0.90771558]
[1761409625056,2.88,191.75,191.62,2.61]
[1761409625245,2.88,191.75,191.66,0.90785766]
[1761409626455,2.84,191.73,191.66,0.90785766]
[1761409626655,2.84,191.71,191.66,0.90785766]
[1761409626852,2.84,191.71,191.66,3.51785766]
[1761409628361,2.84,191.71,191.66,0.90785766]
[1761409629063,2.84,191.71,191.66,3.52785766]
[1761409634861,4.01714354,191.7,191.63,2.62]
[1761409635063,2.7,191.69,191.63,2.62]
[1761409635263,2.7,191.69,191.63,3.52799979]
[1761409635967,2.7,191.69,191.63,0.90799979]
[1761409636167,2.7,191.69,191.64,2.62]
[1761409651674,2.7,191.69,191.63,0.90799979]
[1761409651980,2.7,191.69,191.61,2.62]
[1761409656182,2.7,191.68,191.61,2.62]
[1761409656985,2.7,191.68,191.6,0.90816566]
[1761409662989,2.7,191.68,191.58,62.86]
[1761409663190,2.7,191.68,191.59,2.84]
[1761409666094,2.85,191.67,191.59,2.84]
[1761409675112,2.85,191.66,191.59,2.84]
[1761409683723,25.15420434,191.76,191.58,0.90824862]
[1761409683724,2.61,191.64,191.58,0.90824862]
[1761409683930,2.61,191.62,191.53,2.78]
[1761409684116,6.61027283,191.61,191.54,2.78]
[1761409684321,2.61,191.61,191.54,2.78]
[1761409685229,3.99298249,191.6,191.52,2.78]
[1761409685424,2.61,191.58,191.52,2.78]
[1761409702340,2.61,191.58,191.47,2.79]
[1761409702737,2.61,191.58,191.47,3.69875855]
[1761409702938,2.61,191.58,191.48,2.79]
[1761409703237,2.75,191.57,191.48,2.79]
[1761409715761,2.75,191.56,191.48,2.79]
[1761409718758,2.89,191.55,191.48,2.79]
[1761409722364,2.89,191.54,191.48,2.79]
[1761409728965,4.01700563,191.53,191.48,2.79]
[1761409729266,2.89,191.51,191.48,2.79]
[1761409737388,2.89,191.51,191.45,2.72]
[1761409741390,6.77379428,191.5,191.45,2.72]
[1761409741691,2.76,191.5,191.45,2.72]
[1761409743587,2.76,191.5,191.44,0.90886535]
[1761409743793,2.76,191.48,191.41,2.66]
[1761409743993,6.77340161,191.47,191.41,2.66]
[1761409744194,6.77340161,191.46,191.41,2.66]
[1761409744493,2.76,191.46,191.41,2.66]
[1761409750490,2.78,191.49,191.41,2.66]
[1761409750790,2.78,191.52,191.41,2.66]
[1761409750996,4.01420983,191.51,191.41,2.66]
[1761409751191,4.01420983,191.5,191.41,2.66]
[1761409751386,4.01420983,191.49,191.41,2.66]
[1761409751585,2.78,191.52,191.41,2.66]
[1761409751790,4.0141762,191.51,191.41,2.66]
[1761409751990,4.0141762,191.5,191.41,2.66]
[1761409752196,4.0141762,191.49,191.41,2.66]
[1761409752396,2.78,191.52,191.41,2.66]
[1761409752594,4.01427068,191.51,191.41,2.66]
[1761409752791,4.01427068,191.52,191.41,2.66]
[1761409753096,2.78,191.54,191.41,2.66]
[1761409753298,6.79491615,191.53,191.41,2.66]
[1761409753496,4.01491615,191.52,191.41,2.66]
[1761409753698,2.78,191.53,191.41,2.66]
[1761409753996,4.01538168,191.52,191.41,2.66]
[1761409754189,2.78,191.53,191.41,2.66]
[1761409754496,4.01583966,191.52,191.41,2.66]
[1761409754694,2.78,191.53,191.41,2.66]
[1761409754887,4.01583966,191.52,191.41,2.66]
[1761409755087,2.78,191.53,191.41,2.66]
[1761409755295,6.79583966,191.52,191.41,2.66]
[1761409755498,2.78,191.52,191.41,2.66]
[1761409756392,4.01653679,191.56,191.41,2.66]
[1761409756599,6.79653679,191.55,191.41,2.66]
[1761409756789,4.01653679,191.54,191.41,2.66]
[1761409756989,2.78,191.55,191.41,2.66]
[1761409757186,4.01676625,191.54,191.41,2.66]
[1761409757390,2.78,191.55,191.41,2.66]
[1761409757590,4.01676505,191.54,191.41,2.66]
[1761409757796,2.78,191.55,191.41,2.66]
[1761409757998,6.79676505,191.54,191.41,2.66]
[1761409758294,2.78,191.54,191.41,2.66]
[1761409761897,2.78,191.56,191.42,2.74]
[1761409762993,2.78,191.56,191.43,4.7008]
[1761409763193,2.78,191.56,191.44,2.74]
[1761409763996,6.79607838,191.56,191.44,2.74]
[1761409764195,2.78,191.56,191.44,2.74]
[1761409770900,6.7915239,191.56,191.44,2.74]
[1761409771206,2.78,191.56,191.44,2.74]
[1761409772196,2.78,191.55,191.44,2.74]
[1761409788426,2.78,191.55,191.45,62.88]
[1761409788630,2.78,191.55,191.46,2.81]
[1761409793226,4.01569274,191.54,191.46,2.81]
[1761409793533,2.65,191.53,191.46,2.81]
[1761409800238,4.01669862,191.52,191.46,2.81]
[1761409800439,2.84,191.52,191.46,2.81]
[1761409803641,2.84,191.5,191.44,62.88]
[1761409803835,2.84,191.5,191.45,2.71]
[1761409822252,2.71,191.53,191.45,2.71]
[1761409830261,2.71,191.55,191.45,2.71]
[1761409830448,4.00332757,191.54,191.45,2.71]
[1761409830757,7.44071972,191.55,191.45,2.71]
[1761409830758,2.71,191.55,191.45,2.71]
[1761409830960,4.00332483,191.54,191.45,2.71]
[1761409831151,2.71,191.55,191.45,2.71]
[1761409831352,4.00327221,191.54,191.45,2.71]
[1761409831551,2.71,191.55,191.45,2.71]
[1761409832158,2.71,191.59,191.45,2.71]
[1761409832354,2.71,191.57,191.45,2.71]
[1761409832953,2.71,191.57,191.46,4.7001]
[1761409833155,2.71,191.57,191.47,2.62]
[1761409841064,2.71,191.57,191.48,2.67]
[1761409854072,2.93234,191.61,191.5,2.67]
[1761409854981,2.93234,191.61,191.52,2.67]
[1761409855278,2.93234,191.61,191.54,2.67]
[1761409860386,0.15234,191.61,191.54,2.67]
[1761409861590,0.15234,191.61,191.55,2.64]
[1761409862082,0.15234,191.61,191.56,4.6975]
[1761409862286,2.7,191.67,191.57,2.64]
[1761409863282,2.7,191.67,191.58,2.64]
[1761409863486,2.7,191.67,191.59,2.64]
[1761409863789,3.97676563,191.75,191.59,2.64]
[1761409863980,2.7,191.74,191.59,2.64]
[1761409864692,2.7,191.74,191.6,2.64]
[1761409864892,2.7,191.74,191.62,2.64]
[1761409865287,2.7,191.74,191.61,37.32]
[1761409866088,2.7,191.74,191.62,2.64]
[1761409868995,2.71,191.7,191.62,2.64]
[1761409883611,0.14131,191.71,191.62,2.64]
[1761409884323,0.14131,191.71,191.62,7.336]
[1761409884521,0.14131,191.71,191.63,2.89]
[1761409888523,2.71,191.73,191.63,2.89]
[1761409889525,2.71,191.73,191.65,2.89]
[1761409890024,2.71,191.73,191.66,62.86]
[1761409891824,2.71,191.73,191.66,65.75]
[1761409892733,2.71,191.73,191.67,2.89]
[1761409906735,2.82,191.79,191.67,2.89]
[1761409906935,4.83401898,191.8,191.67,2.89]
[1761409906936,2.82,191.77,191.67,2.89]
[1761409907137,2.82,191.75,191.67,2.89]
[1761409917947,2.82,191.75,191.67,62.82]
[1761409920947,2.82,191.75,191.63,2.8]
[1761409921243,2.76,191.74,191.64,62.84]
[1761409922849,2.76,191.72,191.64,62.84]
[1761409923145,2.76,191.71,191.64,62.84]
[1761409925449,2.76,191.69,191.64,62.84]
[1761409926053,3.98912295,191.68,191.64,62.84]
[1761409926357,2.76,191.67,191.64,62.84]
[1761409940552,2.76,191.67,191.6,2.62]
[1761409940750,2.76,191.67,191.6,65.48]
[1761409941149,2.76,191.67,191.61,2.62]
[1761409949770,2.86,191.73,191.61,2.62]
[1761409949963,2.86,191.71,191.61,2.62]
[1761409950269,2.86,191.7,191.61,2.62]
[1761409950461,2.86,191.69,191.61,2.62]
[1761409954769,6.85766527,191.69,191.61,2.62]
[1761409955073,2.86,191.69,191.61,2.62]
[1761409958580,4.01003419,191.68,191.61,2.62]
[1761409958780,2.86,191.69,191.61,2.62]
[1761409958972,4.00992701,191.68,191.61,2.62]